fUSD/lending_fUSD_20240215
["ID","MTS","AMOUNT","RATE_DAILY","PERIOD"]
[314158012,1708031438088,-250.0,0.000375,2]
[314158013,1708031438098,-1000.0,0.000375,5]
[314158014,1708031438108,-1000.0,0.000375,5]
[314158015,1708031438117,-1000.0,0.000375,5]
[314158016,1708031438126,-1000.0,0.000375,5]
[314158017,1708031438135,-1000.0,0.000375,5]
[314158018,1708031438145,-1000.0,0.000375,5]
[314158019,1708031438154,-1000.0,0.000375,5]
[314158020,1708031438163,-1000.0,0.000375,5]
[314158021,1708031438172,-1000.0,0.000375,5]
[314158022,1708031438182,-1000.0,0.000375,5]
[314158023,1708031438191,-1000.0,0.000375,5]
[314158024,1708031438201,-1000.0,0.000375,5]
[314158025,1708031438210,-1000.0,0.000375,5]
[314158026,1708031438220,-1000.0,0.000375,5]
[314158027,1708031438229,-1000.0,0.000375,5]
[314158028,1708031438238,-1000.0,0.000375,5]
[314158029,1708031438247,-1000.0,0.000375,5]
[314158030,1708031438257,-1000.0,0.000375,5]
[314158031,1708031438266,-1000.0,0.000375,5]
[314158032,1708031438275,-1000.0,0.000375,5]
[314158033,1708031438285,-538.21767703,0.00037534,2]
[314158034,1708031438295,-234.021624,0.00037548,25]
[314158035,1708031438306,-263.15507376,0.00037551,2]
[314158036,1708031438316,-157.30314006,0.0003757,2]
[314158037,1708031438324,-205.0,0.00037576,2]
[314158038,1708031438334,-204.0,0.00037576,2]
[314158039,1708031438343,-283.32,0.00037605,2]
[314158040,1708031438352,-405.24244888,0.00037609,30]
[314158041,1708031438361,-200.31907233,0.00037631,2]
[314158042,1708031438371,-234.021624,0.00037648,24]
[314158043,1708031438380,-3572.76067663,0.00037673,8]
[314158044,1708031438390,-954.0,0.00037686,2]
[314158045,1708031438401,-346785.72243542,0.000377,3]
[314158046,1708031438418,-189078.64367395,0.000377,3]
[314158057,1708031440080,-1019.77931799,0.000377,3]
[314158059,1708031440092,-2155.72013022,0.000377,3]
[314158060,1708031440104,-141519.3000005,0.000377,3]
[314158061,1708031440926,-13308.00326786,0.000377,3]
[314158062,1708031440938,-2828.71936873,0.000377,3]
[314158083,1708031442466,-2937.17592683,0.000377,3]
[314158096,1708031442580,-3784.85783431,0.000377,3]
[314158110,1708031442757,-2143.65026,0.000377,3]
[314158123,1708031442877,-373.5132,0.000377,3]
[314158125,1708031442889,-3139.88236304,0.000377,3]
[314158128,1708031442901,-2989.10141033,0.000377,3]
[314158130,1708031442913,-3385.85644105,0.000377,3]
[314158132,1708031442925,-10551.42035041,0.000377,3]
[314158134,1708031442934,-538.21767703,0.00037717,2]
[314158136,1708031442943,-6933.00997384,0.00037731,11]
[314158138,1708031442955,-2825.29939404,0.00037731,11]
[314158159,1708031445595,-1374.76356697,0.0003708,2]
[314158160,1708031445607,-800.68643303,0.0003708,2]
[314158161,1708031445616,-581.00571147,0.00037731,11]
[314158162,1708031445626,-234.021624,0.00037748,25]
[314158163,1708031445635,-283.32,0.00037789,2]
[314158164,1708031445644,-263.15507376,0.000378,2]
[314158165,1708031445653,-658.0111578,0.000378,3]
[314158166,1708031445788,-560.65000014,0.000378,3]
[314158170,1708032018957,7605.0229524,0.0003,120]
[314158171,1708032103849,818.19876337,0.0003,10]
[314158173,1708032128082,253040.81325501,0.0003,4]
[314158174,1708032128106,47565.17272999,0.0003,4]
[314158183,1708032631666,-150.0,0.00031951,2]
[314158184,1708032631676,-405.24244988,0.00032,6]
[314158185,1708032631686,-150.0,0.00032636,2]
[314158186,1708032631696,-162.88715173,0.000328,2]
[314158187,1708032631705,-332.017282,0.000329,2]
[314158188,1708032631715,-150.0,0.00033321,2]
[314158189,1708032631725,-754.67,0.00033563,2]
[314158190,1708032631734,-41.52658624,0.00033599,2]
[314158191,1708032631746,-108.47341376,0.00033599,2]
[314158192,1708032631755,-150.0,0.00033599,3]
[314158193,1708032631765,-300.0,0.00033599,3]
[314158194,1708032631774,-2210.0,0.000336,3]
[314158195,1708032631783,-17756.0,0.000336,3]
[314158196,1708032631793,-150.0,0.00034005,2]
[314158197,1708032631802,-499.99,0.00034214,2]
[314158198,1708032631812,-293.08,0.00034214,2]
[314158199,1708032631821,-636.35,0.00034214,2]
[314158200,1708032631832,-167.83,0.00034245,2]
[314158201,1708032631841,-1000.0,0.00034245,2]
[314158202,1708032631851,-7548.56,0.00034245,2]
[314158203,1708032631861,-401.79,0.00034245,2]
[314158204,1708032631871,-1812.87,0.00034245,2]
[314158205,1708032631880,-401.79,0.00034425,2]
[314158206,1708032631889,-349.45181,0.0003452,2]
[314158207,1708032631898,-205.0,0.00034576,2]
[314158208,1708032631908,-204.0,0.00034576,2]
[314158209,1708032631917,-401.79,0.00034605,2]
[314158210,1708032631926,-995.16,0.0003466,2]
[314158211,1708032631935,-150.0,0.0003469,2]
[314158212,1708032631945,-348.72,0.00034698,2]
[314158213,1708032631954,-1000.0,0.00034724,2]
[314158214,1708032631965,-3555.9,0.00034725,5]
[314158215,1708032631975,-3596.98,0.00034725,5]
[314158216,1708032631984,-3674.5,0.00034725,5]
[314158217,1708032631994,-152.0,0.00034728,3]
[314158218,1708032632003,-1520.58706949,0.00034744,10]
[314158219,1708032632012,-2359.42882052,0.00034763,10]
[314158220,1708032632021,-1591.69018654,0.00034763,10]
[314158221,1708032632030,-401.79,0.00034786,2]
[314158223,1708032632040,-524.177715,0.00034794,2]
[314158225,1708032632048,-698.90362,0.00034931,2]
[314158226,1708032632057,-153.37,0.00034934,2]
[314158227,1708032632067,-401.79,0.00034966,2]
[314158228,1708032632076,-74275.74440119,0.00035,4]
[314158229,1708032632087,-873.629525,0.00035068,2]
[314158230,1708032632098,-401.79,0.00035146,2]
[314158231,1708032632108,-153.37,0.00035298,2]
[314158232,1708032632117,-401.79,0.00035326,2]
[314158233,1708032632127,-1223.081335,0.00035342,2]
[314158234,1708032632136,-162.88715171,0.0003535,2]
[314158235,1708032632146,-150.0,0.00035375,2]
[314158236,1708032632155,-574.77,0.00035406,2]
[314158237,1708032632165,-2000.0,0.00035443,2]
[314158238,1708032632174,-23900.0,0.00035476,2]
[314158239,1708032632183,-401.79,0.00035507,2]
[314158240,1708032632194,-153.37,0.00035662,2]
[314158241,1708032632204,-401.79,0.00035687,2]
[314158242,1708032632213,-170.92,0.00035749,2]
[314158243,1708032632222,-250.0,0.00035777,111]
[314158244,1708032632231,-190.85,0.00035793,2]
[314158245,1708032632241,-250.0,0.00035815,2]
[314158246,1708032632251,-754.67,0.00035827,2]
[314158247,1708032632260,-1000.0,0.00035836,5]
[314158248,1708032632269,-1000.0,0.00035836,5]
[314158249,1708032632278,-1000.0,0.00035836,5]
[314158250,1708032632287,-1000.0,0.00035836,5]
[314158251,1708032632297,-1000.0,0.00035836,5]
[314158252,1708032632306,-1000.0,0.00035836,5]
[314158253,1708032632315,-1000.0,0.00035836,5]
[314158254,1708032632325,-1000.0,0.00035836,5]
[314158255,1708032632336,-1000.0,0.00035836,5]
[314158256,1708032632345,-1000.0,0.00035836,5]
[314158257,1708032632362,-1000.0,0.00035836,5]
[314158258,1708032632375,-1000.0,0.00035836,5]
[314158259,1708032632385,-1000.0,0.00035836,5]
[314158260,1708032632394,-1000.0,0.00035836,5]
[314158261,1708032632404,-1000.0,0.00035836,5]
[314158262,1708032632414,-1000.0,0.00035836,5]
[314158263,1708032632423,-1000.0,0.00035836,5]
[314158264,1708032632433,-1000.0,0.00035836,5]
[314158265,1708032632443,-1000.0,0.00035836,5]
[314158266,1708032632452,-1000.0,0.00035836,5]
[314158267,1708032632462,-250.0,0.00035836,2]
[314158268,1708032632471,-214.52,0.00035842,2]
[314158269,1708032632481,-401.79,0.00035867,2]
[314158270,1708032632490,-1397.80724,0.00036,2]
[314158271,1708032632499,-153.37,0.00036027,2]
[314158272,1708032632508,-401.79,0.00036047,2]
[314158273,1708032632518,-150.0,0.0003606,7]
[314158274,1708032632527,-828.82,0.00036193,2]
[314158275,1708032632536,-401.79,0.00036228,2]
[314158276,1708032632545,-249.0,0.0003623,2]
[314158277,1708032632555,-995.16,0.00036304,2]
[314158278,1708032632564,-158.08,0.00036368,2]
[314158279,1708032632574,-153.37,0.00036391,2]
[314158280,1708032632585,-401.79,0.00036408,2]
[314158281,1708032632594,-348.72,0.00036433,2]
[314158282,1708032632604,-401.79,0.00036588,2]
[314158283,1708032632613,-4134.00342623,0.00036672,2]
[314158284,1708032632622,-3154.43729945,0.00036672,8]
[314158285,1708032632632,-205.0,0.00036695,6]
[314158286,1708032632642,-574.77,0.00036716,2]
[314158287,1708032632652,-150.0,0.00036745,7]
[314158288,1708032632662,-153.37,0.00036755,2]
[314158289,1708032632671,-401.79,0.00036768,2]
[314158290,1708032632681,-158.08,0.00036772,2]
[314158291,1708032632690,-45626.55613741,0.00036772,2]
[314158292,1708032632706,-9070.62001971,0.00036772,2]
[314158293,1708032632718,-30544.92331587,0.00036772,2]
[314158294,1708032632730,-49464.79930966,0.00036772,2]
[314158295,1708032632743,-272.76693058,0.00036772,2]
[314158296,1708032632755,-824.46006217,0.00036772,2]
[314158297,1708032632767,-531.52383029,0.00036772,2]
[314158298,1708032632793,-2232.90621236,0.00036772,2]
[314158299,1708032632805,-1553.06,0.00036772,2]
[314158300,1708032632822,-5646.92228246,0.00036772,2]
[314158301,1708032632835,-963.54444357,0.00036772,2]
[314158302,1708032632851,-431.72341497,0.00036772,2]
[314158303,1708032632863,-4187.46021996,0.00036772,2]
[314158304,1708032633011,-369.77861568,0.00036772,2]
[314158307,1708032637722,-18317.21842774,0.00036772,2]
[314158308,1708032637734,-103196.79907757,0.00036772,2]
[314158309,1708032637743,-252.6372,0.00036772,2]
[314158310,1708032637752,-155.0,0.0003689,2]
[314158311,1708032637761,-1341.42389015,0.00036929,2]
[314158312,1708032637771,-401.79,0.00036949,2]
[314158313,1708032637780,-150.0,0.00037,2]
[314158314,1708032637789,-227.64625164,0.00037,2]
[314158315,1708032637799,-500.0,0.00037,2]
[314158316,1708032637808,-899.0,0.00037,2]
[314158317,1708032637817,-361.84787979,0.00037,2]
[314158318,1708032637826,-234.021624,0.00037018,19]
[314158319,1708032637837,-234.021624,0.00037048,25]
[314158320,1708032637846,-234.021624,0.00037096,24]
[314158321,1708032637856,-1341.42389015,0.00037099,2]
[314158322,1708032637865,-234.021624,0.00037118,24]
[314158323,1708032637874,-401.79,0.00037129,2]
[314158324,1708032637884,-234.021624,0.00037148,26]
[314158325,1708032637894,-158.08,0.00037176,2]
[314158326,1708032637903,-234.021624,0.00037196,24]
[314158327,1708032637912,-151.0,0.00037217,120]
[314158328,1708032637922,-234.021624,0.00037218,25]
[314158329,1708032637931,-234.021624,0.00037248,24]
[314158330,1708032637940,-234.021624,0.00037296,25]
[314158331,1708032637949,-401.79,0.00037309,2]
[314158332,1708032637959,-234.021624,0.00037318,26]
[314158333,1708032637968,-312.9244,0.00037331,2]
[314158334,1708032637978,-2450.3078,0.00037331,2]
[314158335,1708032637987,-150.0,0.00037346,2]
[314158336,1708032637996,-234.021624,0.00037348,25]
[314158337,1708032638006,-234.021624,0.00037396,26]
[314158338,1708032638015,-1341.42389015,0.00037396,2]
[314158339,1708032638025,-150.0,0.000374,20]
[314158340,1708032638034,-354.4,0.000374,2]
[314158342,1708032638043,-258.69,0.000374,30]
[314158344,1708032638052,-234.021624,0.00037418,25]
[314158346,1708032638062,-368.2443,0.00037418,2]
[314158348,1708032638071,-150.0,0.0003743,7]
[314158350,1708032638080,-234.021624,0.00037448,26]
[314158352,1708032638090,-166.14,0.00037456,2]
[314158354,1708032638101,-401.79,0.00037489,2]
[314158356,1708032638111,-185.29190013,0.00037491,3]
[314158358,1708032638122,-234.021624,0.00037496,26]
[314158361,1708032638132,-234.021624,0.00037518,24]
[314158363,1708032638141,-258.69,0.00037537,30]
[314158365,1708032638152,-1378.6506203,0.00037541,4]
[314158367,1708032638162,-280.87973199,0.00037541,3]
[314158369,1708032638171,-289.07344364,0.00037541,4]
[314158370,1708032638181,-234.021624,0.00037548,24]
[314158371,1708032638191,-515.18351411,0.00037548,2]
[314158372,1708032638200,-356.41283264,0.00037568,4]
[314158373,1708032638209,-270.13265941,0.00037568,4]
[314158374,1708032638218,-158.08,0.0003758,2]
[314158375,1708032638228,-234.021624,0.00037596,27]
[314158376,1708032638237,-2500.0,0.000376,2]
[314158377,1708032638247,-1725.26,0.00037601,2]
[314158378,1708032638256,-1341.42389015,0.0003761,2]
[314158379,1708032638266,-15025.37135576,0.00037614,2]
[314158380,1708032638276,-234.021624,0.00037618,24]
[314158381,1708032638286,-234.021624,0.00037648,25]
[314158382,1708032638295,-401.79,0.0003767,2]
[314158383,1708032638304,-258.69,0.00037674,30]
[314158384,1708032638314,-4134.00342623,0.00037697,2]
[314158385,1708032638324,-1516.95860631,0.000377,4]
[314158386,1708032638334,-525.05705763,0.000377,2]
[314158387,1708032638344,-3241.70520004,0.000377,2]
[314158388,1708032638353,-3154.43729943,0.00037705,8]
[314158389,1708032638542,-151.021624,0.00037718,24]
[314158390,1708032638552,-234.021624,0.00037748,26]
[314158391,1708032638561,-336.83945975,0.0003779,2]
[314158392,1708032638570,-234.021624,0.00037796,25]
[314158393,1708032638579,-170.32893908,0.00037797,2]
[314158394,1708032638590,-259.75093101,0.00037799,4]
[314158395,1708032638599,-277455.10607487,0.000378,3]
[314158396,1708032638608,-198.6305,0.000378,2]
[314158397,1708032638617,-245000.0,0.000378,2]
[314158398,1708032638626,-32302.6287,0.000378,2]
[314158399,1708032638635,-2000.0,0.000378,2]
[314158400,1708032638646,-200.0,0.000378,2]
[314158401,1708032638656,-100000.0,0.000378,2]
[314158402,1708032638666,-1000.0,0.000378,2]
[314158403,1708032638676,-937.25220494,0.000378,2]
[314158404,1708032638686,-2000.0,0.000378,2]
[314158405,1708032638695,-200.0,0.000378,2]
[314158406,1708032638704,-22694.90613484,0.000378,4]
[314158407,1708032638714,-100000.0,0.000378,4]
[314158408,1708032638724,-64382.0,0.000378,4]
[314158409,1708032638733,-3000.0,0.000378,2]
[314158410,1708032638742,-258.69,0.00037811,30]
[314158411,1708032638751,-263.4741318,0.0003784,11]
[314158412,1708032638760,-234.021624,0.00037848,24]
[314158413,1708032638769,-152.98623787,0.0003789,2]
[314158414,1708032638778,-1516.95860631,0.0003789,4]
[314158415,1708032638787,-234.021624,0.00037896,26]
[314158416,1708032638797,-176.28392625,0.00037896,2]
[314158417,1708032638806,-1000.0,0.000379,2]
[314158418,1708032638816,-2103.9982,0.000379,2]
[314158419,1708032638825,-205.21073047,0.000379,11]
[314158420,1708032638834,-10507.06615391,0.000379,11]
[314158421,1708032638843,-3000.0,0.000379,33]
[314158422,1708032638853,-162.88715171,0.000379,2]
[314158423,1708032638863,-5000.0,0.000379,3]
[314158424,1708032638872,-237422.950691,0.000379,3]
[314158425,1708032638881,-447.21239509,0.000379,2]
[314158426,1708032638890,-2113.7053172,0.000379,2]
[314158427,1708032638899,-2002.83675097,0.000379,2]
[314158428,1708032638908,-5269.90400572,0.000379,2]
[314158429,1708032638918,-3000.0,0.0003791,33]
[314158430,1708032638927,-3000.0,0.0003792,33]
[314158431,1708032638936,-3000.0,0.0003793,33]
[314158432,1708032638945,-3000.0,0.0003794,33]
[314158433,1708032638955,-995.16,0.00037948,2]
[314158434,1708032638964,-234.021624,0.00037948,25]
[314158435,1708032638973,-258.69,0.00037948,30]
[314158436,1708032638983,-3000.0,0.0003795,33]
[314158437,1708032638992,-217.0,0.00037951,30]
[314158438,1708032639001,-151.0,0.00037951,30]
[314158439,1708032639010,-3000.0,0.0003796,33]
[314158440,1708032639020,-3000.0,0.0003797,33]
[314158441,1708032639029,-283.32,0.00037973,2]
[314158442,1708032639038,-151.0,0.00037977,30]
[314158443,1708032639047,-79140.9835636,0.0003798,3]
[314158444,1708032639057,-79140.9835636,0.0003798,3]
[314158445,1708032639067,-5248.673567,0.0003798,33]
[314158446,1708032639076,-79140.9835636,0.0003798,3]
[314158447,1708032639088,-336.83945975,0.0003798,2]
[314158448,1708032639101,-158.08,0.00037984,2]
[314158449,1708032639110,-79140.9835636,0.0003799,3]
[314158450,1708032639119,-79140.9835636,0.0003799,3]
[314158451,1708032639129,-234.021624,0.00037996,27]
[314158452,1708032639138,-100000.0,0.00038,8]
[314158453,1708032639148,-16566.24867001,0.00038,2]
[314158454,1708032639158,-44770.40263219,0.00038,2]
[314158455,1708032639167,-63603.49482712,0.00038,7]
[314158456,1708032639178,-396370.20148256,0.00038,2]
[314158457,1708032639189,-1000.0,0.00038,7]
[314158458,1708032639198,-10000.0,0.00038,10]
[314158459,1708032639207,-68153.0,0.00038,4]
[314158460,1708032639216,-164.75,0.0003802,2]
[314158461,1708032639225,-574.77,0.00038026,2]
[314158462,1708032639234,-234.021624,0.00038048,24]
[314158463,1708032639244,-165.69,0.00038059,2]
[314158464,1708032639254,-258.69,0.00038085,30]
[314158465,1708032639263,-754.67,0.00038091,2]
[314158466,1708032639273,-150.0,0.00038115,7]
[314158467,1708032639282,-234.021624,0.00038148,25]
[314158468,1708032639292,-257.32482154,0.00038156,2]
[314158469,1708032639301,-283.32,0.00038158,2]
[314158470,1708032639311,-348.72,0.00038167,2]
[314158471,1708032639320,-937.25220492,0.00038174,2]
[314158472,1708032639330,-2000.0,0.00038178,2]
[314158473,1708032639341,-200.0,0.00038178,2]
[314158474,1708032639349,-2000.0,0.00038178,2]
[314158475,1708032639358,-200.0,0.00038178,2]
[314158476,1708032639368,-489.97894041,0.0003818,2]
[314158477,1708032639377,-258.69,0.00038222,30]
[314158478,1708032639386,-1341.42389015,0.00038233,2]
[314158479,1708032639396,-200.0,0.00038245,5]
[314158480,1708032639405,-234.021624,0.00038248,24]
[314158481,1708032639414,-55555.0,0.00038256,3]
[314158482,1708032639423,-1000.0,0.00038256,2]
[314158483,1708032639432,-283.32,0.00038342,2]
[314158484,1708032639442,-336.83945975,0.00038346,2]
[314158485,1708032639451,-234.021624,0.00038348,25]
[314158486,1708032639460,-1165.40695577,0.00038355,2]
[314158487,1708032639469,-500.0,0.00038356,7]
[314158488,1708032639478,-548.70613449,0.00038356,9]
[314158489,1708032639487,-500.0,0.00038356,7]
[314158490,1708032639496,-500.0,0.00038356,7]
[314158491,1708032639506,-500.0,0.00038356,7]
[314158492,1708032639515,-500.0,0.00038356,7]
[314158493,1708032639524,-500.0,0.00038356,7]
[314158494,1708032639533,-504.84872914,0.00038356,7]
[314158495,1708032639542,-500.0,0.00038356,7]
[314158496,1708032639551,-500.0,0.00038356,7]
[314158497,1708032639559,-500.0,0.00038356,7]
[314158498,1708032639569,-500.0,0.00038356,7]
[314158499,1708032639578,-500.0,0.00038356,7]
[314158500,1708032639588,-500.0,0.00038356,7]
[314158501,1708032639598,-500.0,0.00038356,7]
[314158502,1708032639607,-500.0,0.00038356,7]
[314158503,1708032639616,-503.79362809,0.00038356,7]
[314158504,1708032639625,-500.0,0.00038356,7]
[314158505,1708032639635,-166.11207641,0.00038356,7]
[314158506,1708032639644,-500.0,0.00038356,7]
[314158507,1708032639653,-500.0,0.00038356,7]
[314158508,1708032639662,-500.0,0.00038356,7]
[314158509,1708032639672,-500.0,0.00038356,7]
[314158510,1708032639681,-500.0,0.00038356,7]
[314158511,1708032639690,-633.04,0.00038356,7]
[314158512,1708032639699,-500.0,0.00038356,7]
[314158513,1708032639708,-500.0,0.00038356,7]
[314158514,1708032639721,-500.0,0.00038356,7]
[314158515,1708032639730,-500.0,0.00038356,2]
[314158516,1708032639740,-500.0,0.00038356,7]
[314158517,1708032639749,-509.08903532,0.00038356,7]
[314158518,1708032639758,-500.0,0.00038356,7]
[314158519,1708032639768,-509.54190916,0.00038356,7]
[314158520,1708032639777,-500.0,0.00038356,7]
[314158521,1708032639786,-547.3551282,0.00038356,7]
[314158522,1708032639796,-500.0,0.00038356,7]
[314158523,1708032639805,-500.0,0.00038356,7]
[314158524,1708032639814,-500.0,0.00038356,7]
[314158525,1708032639824,-500.0,0.00038356,7]
[314158526,1708032639835,-500.0,0.00038356,7]
[314158527,1708032639844,-500.0,0.00038356,7]
[314158528,1708032639853,-500.0,0.00038356,7]
[314158529,1708032639863,-500.0,0.00038356,7]
[314158530,1708032639872,-500.0,0.00038356,7]
[314158531,1708032639881,-500.0,0.00038356,7]
[314158532,1708032639891,-428.12594019,0.00038356,7]
[314158533,1708032639900,-500.0,0.00038356,7]
[314158534,1708032639910,-500.0,0.00038356,7]
[314158535,1708032639920,-500.0,0.00038356,7]
[314158536,1708032639929,-500.0,0.00038356,7]
[314158537,1708032639938,-500.0,0.00038356,7]
[314158538,1708032639947,-500.0,0.00038356,7]
[314158539,1708032639956,-500.0,0.00038356,7]
[314158540,1708032639965,-517.45500124,0.00038356,7]
[314158541,1708032639974,-500.0,0.00038356,7]
[314158542,1708032639987,-500.0,0.00038356,7]
[314158543,1708032639998,-500.0,0.00038356,7]
[314158544,1708032640008,-500.0,0.00038356,7]
[314158545,1708032640017,-500.0,0.00038356,7]
[314158546,1708032640029,-510.73845397,0.00038356,7]
[314158547,1708032640039,-500.0,0.00038356,7]
[314158548,1708032640048,-500.0,0.00038356,7]
[314158549,1708032640058,-500.0,0.00038356,7]
[314158550,1708032640068,-532.73314181,0.00038356,7]
[314158551,1708032640079,-500.0,0.00038356,7]
[314158552,1708032640090,-514.86162866,0.00038356,7]
[314158553,1708032640100,-500.0,0.00038356,2]
[314158554,1708032640110,-500.0,0.00038356,7]
[314158555,1708032640123,-500.0,0.00038356,7]
[314158556,1708032640132,-500.0,0.00038356,7]
[314158557,1708032640142,-500.0,0.00038356,7]
[314158558,1708032640151,-500.0,0.00038356,7]
[314158559,1708032640162,-500.0,0.00038356,7]
[314158560,1708032640172,-500.0,0.00038356,7]
[314158561,1708032640182,-500.0,0.00038356,7]
[314158562,1708032640193,-500.0,0.00038356,7]
[314158563,1708032640203,-500.0,0.00038356,7]
[314158564,1708032640213,-500.0,0.00038356,7]
[314158565,1708032640223,-505.84912423,0.00038356,7]
[314158566,1708032640232,-52.16604783,0.00038356,7]
[314158569,1708032640254,-447.83395217,0.00038356,7]
[314158571,1708032640264,-500.0,0.00038356,7]
[314158573,1708032640274,-500.0,0.00038356,7]
[314158574,1708032640285,-500.0,0.00038356,7]
[314158575,1708032640295,-500.0,0.00038356,7]
[314158576,1708032640304,-500.0,0.00038356,7]
[314158577,1708032640313,-417.07754055,0.00038356,7]
[314158578,1708032640322,-500.0,0.00038356,7]
[314158579,1708032640332,-171.61671148,0.00038356,7]
[314158580,1708032640343,-500.0,0.00038356,7]
[314158581,1708032640353,-258.10664868,0.00038356,7]
[314158582,1708032640363,-500.0,0.00038356,7]
[314158583,1708032640373,-500.0,0.00038356,7]
[314158584,1708032640383,-551.62,0.00038356,7]
[314158585,1708032640392,-500.0,0.00038356,7]
[314158586,1708032640402,-500.0,0.00038356,7]
[314158587,1708032640412,-513.99335436,0.00038356,7]
[314158588,1708032640421,-500.0,0.00038356,7]
[314158589,1708032640433,-500.0,0.00038356,7]
[314158590,1708032640442,-500.0,0.00038356,7]
[314158591,1708032640452,-500.0,0.00038356,7]
[314158592,1708032640462,-500.0,0.00038356,7]
[314158593,1708032640471,-500.0,0.00038356,7]
[314158594,1708032640481,-500.0,0.00038356,7]
[314158595,1708032640490,-500.0,0.00038356,7]
[314158596,1708032640499,-500.0,0.00038356,7]
[314158597,1708032640508,-519.02279482,0.00038356,7]
[314158598,1708032640518,-175.03721412,0.00038356,7]
[314158599,1708032640527,-500.0,0.00038356,7]
[314158600,1708032640536,-500.0,0.00038356,7]
[314158601,1708032640546,-500.0,0.00038356,7]
[314158602,1708032640555,-500.0,0.00038356,7]
[314158603,1708032640564,-500.0,0.00038356,7]
[314158604,1708032640573,-604.61950329,0.00038356,7]
[314158605,1708032640583,-500.0,0.00038356,7]
[314158606,1708032640593,-500.0,0.00038356,7]
[314158607,1708032640602,-500.0,0.00038356,7]
[314158608,1708032640611,-500.0,0.00038356,7]
[314158609,1708032640620,-500.0,0.00038356,7]
[314158610,1708032640629,-500.0,0.00038356,7]
[314158611,1708032640638,-520.8161377,0.00038356,7]
[314158612,1708032640648,-621.35313092,0.00038356,7]
[314158613,1708032640658,-500.0,0.00038356,7]
[314158614,1708032640666,-500.0,0.00038356,7]
[314158615,1708032640676,-500.0,0.00038356,7]
[314158616,1708032640685,-500.0,0.00038356,7]
[314158617,1708032640694,-500.0,0.00038356,7]
[314158618,1708032640704,-500.0,0.00038356,7]
[314158619,1708032640713,-500.0,0.00038356,7]
[314158620,1708032640723,-518.93042336,0.00038356,7]
[314158621,1708032640733,-500.0,0.00038356,7]
[314158622,1708032640742,-500.0,0.00038356,7]
[314158623,1708032640752,-500.0,0.00038356,7]
[314158624,1708032640761,-500.0,0.00038356,7]
[314158625,1708032640770,-524.03251789,0.00038356,7]
[314158626,1708032640779,-500.0,0.00038356,7]
[314158627,1708032640789,-500.0,0.00038356,7]
[314158628,1708032640798,-500.0,0.00038356,7]
[314158629,1708032640807,-500.0,0.00038356,7]
[314158630,1708032640817,-500.0,0.00038356,7]
[314158631,1708032640826,-500.41624824,0.00038356,7]
[314158632,1708032640838,-500.0,0.00038356,7]
[314158633,1708032640848,-500.0,0.00038356,7]
[314158634,1708032640857,-500.0,0.00038356,7]
[314158635,1708032640867,-500.0,0.00038356,7]
[314158636,1708032640876,-500.0,0.00038356,7]
[314158637,1708032640885,-500.0,0.00038356,7]
[314158638,1708032640895,-500.0,0.00038356,7]
[314158639,1708032640904,-500.0,0.00038356,7]
[314158640,1708032640914,-314.70989924,0.00038356,7]
[314158641,1708032640924,-500.0,0.00038356,7]
[314158642,1708032640933,-500.0,0.00038356,7]